[Event "Titled Tuesday Blitz February 07 Late 2023"]
[White "Kochetov, Andrey"]
[Black "Korchmar, Vasiliy"]
[WhiteFideId "24130532"]
[BlackFideId "24131750"]
[WhiteElo "2165"]
[BlackElo "2438"]
[Result "0-1"]
[Round "09"]
[TimeControl "180+2"]
[Date "2023.02.07"]
[WhiteClock "0:00:04"]
[BlackClock "0:01:06"]

1. e4 {[%clk 0:03:00]}  c5 {[%clk 0:03:00]} 2. Nf3 {[%clk 0:03:00]}  d6 {[%clk 0:03:00]} 3. d4 {[%clk 0:03:01]}  cxd4 {[%clk 0:03:01]} 4. Nxd4 {[%clk 0:03:02]}  Nf6 {[%clk 0:03:01]} 5. f3 {[%clk 0:03:02]}  e5 {[%clk 0:03:01]} 6. Nb3 {[%clk 0:03:03]}  Be6 {[%clk 0:03:02]} 7. c4 {[%clk 0:03:02]}  Nbd7 {[%clk 0:03:02]} 8. Nc3 {[%clk 0:03:03]}  Rc8 {[%clk 0:03:03]} 9. Nd5 {[%clk 0:03:01]}  b5 {[%clk 0:02:49]} 10. Nxf6+ {[%clk 0:02:33]}  Nxf6 {[%clk 0:02:48]} 11. cxb5 {[%clk 0:02:33]}  d5 {[%clk 0:02:48]} 12. exd5 {[%clk 0:02:26]}  Nxd5 {[%clk 0:02:49]} 13. Be2 {[%clk 0:02:06]}  Bb4+ {[%clk 0:02:47]} 14. Bd2 {[%clk 0:01:50]}  Ne3 {[%clk 0:02:44]} 15. Bxb4 {[%clk 0:01:50]}  Nxd1 {[%clk 0:02:31]} 16. Ba5 {[%clk 0:01:35]}  Qg5 {[%clk 0:02:05]} 17. Rxd1 {[%clk 0:01:25]}  Qxg2 {[%clk 0:02:04]} 18. Rf1 {[%clk 0:01:18]}  Bxb3 {[%clk 0:02:04]} 19. axb3 {[%clk 0:01:08]}  Qxh2 {[%clk 0:02:04]} 20. b6 {[%clk 0:01:00]}  Qh4+ {[%clk 0:02:02]} 21. Rf2 {[%clk 0:00:56]}  axb6 {[%clk 0:01:59]} 22. Bb5+ {[%clk 0:00:53]}  Kf8 {[%clk 0:01:59]} 23. Bc3 {[%clk 0:00:42]}  h5 {[%clk 0:01:55]} 24. Kf1 {[%clk 0:00:32]}  Qh3+ {[%clk 0:01:34]} 25. Kg1 {[%clk 0:00:17]}  Rh6 {[%clk 0:01:32]} 26. Rg2 {[%clk 0:00:12]}  Rg6 {[%clk 0:01:13]} 27. Rxg6 {[%clk 0:00:12]}  fxg6 {[%clk 0:01:14]} 28. Bxe5 {[%clk 0:00:09]}  Kg8 {[%clk 0:01:09]} 29. Bd7 {[%clk 0:00:05]}  Qxf3 {[%clk 0:01:08]} 30. Rf1 {[%clk 0:00:05]}  Qe3+ {[%clk 0:01:07]} 31. Kh1 {[%clk 0:00:04]}  Qe4+ {[%clk 0:01:06]} 32. Kg1 {[%clk 0:00:04]}  Qxe5 {[%clk 0:01:05]} 33. Bxc8 {[%clk 0:00:04]}  Qc5+ {[%clk 0:01:06]} 0-1


[Site "https://www.chess.com"]

[Event "Titled Tuesday Blitz February 07 Late 2023"]
[White "Saveliev, Alexei"]
[Black "Zochowski, Kacper"]
[WhiteFideId "24128546"]
[BlackFideId "1125494"]
[WhiteElo "2385"]
[BlackElo "2262"]
[Result "1-0"]
[Round "09"]
[TimeControl "180+2"]
[Date "2023.02.07"]
[WhiteClock "0:01:22"]
[BlackClock "0:00:02"]

1. c4 {[%clk 0:03:00]}  d6 {[%clk 0:02:59]} 2. Nc3 {[%clk 0:03:00]}  g6 {[%clk 0:02:59]} 3. d4 {[%clk 0:03:01]}  Bg7 {[%clk 0:03:00]} 4. e4 {[%clk 0:03:01]}  e5 {[%clk 0:02:59]} 5. dxe5 {[%clk 0:03:01]}  dxe5 {[%clk 0:02:59]} 6. Qxd8+ {[%clk 0:03:02]}  Kxd8 {[%clk 0:03:00]} 7. Bg5+ {[%clk 0:03:00]}  f6 {[%clk 0:02:58]} 8. O-O-O+ {[%clk 0:03:01]}  Nd7 {[%clk 0:02:09]} 9. Bh4 {[%clk 0:02:59]}  c6 {[%clk 0:02:09]} 10. f4 {[%clk 0:02:51]}  exf4 {[%clk 0:02:01]} 11. Bf2 {[%clk 0:02:43]}  Kc7 {[%clk 0:01:54]} 12. Nge2 {[%clk 0:02:42]}  g5 {[%clk 0:01:54]} 13. h4 {[%clk 0:02:39]}  Ne5 {[%clk 0:01:52]} 14. g3 {[%clk 0:02:35]}  f3 {[%clk 0:01:19]} 15. Nd4 {[%clk 0:02:32]}  g4 {[%clk 0:01:19]} 16. h5 {[%clk 0:02:29]}  Bh6+ {[%clk 0:01:15]} 17. Kc2 {[%clk 0:02:27]}  Ne7 {[%clk 0:01:15]} 18. Ndb5+ {[%clk 0:02:22]}  cxb5 {[%clk 0:00:58]} 19. Nxb5+ {[%clk 0:02:23]}  Kb8 {[%clk 0:00:45]} 20. Bc5 {[%clk 0:02:23]}  Bd7 {[%clk 0:00:30]} 21. Bxe7 {[%clk 0:02:18]}  Bxb5 {[%clk 0:00:28]} 22. cxb5 {[%clk 0:02:19]}  Bg5 {[%clk 0:00:18]} 23. Kb3 {[%clk 0:02:17]}  a5 {[%clk 0:00:15]} 24. b6 {[%clk 0:02:12]}  a4+ {[%clk 0:00:15]} 25. Ka3 {[%clk 0:02:11]}  Ra5 {[%clk 0:00:15]} 26. Bb4 {[%clk 0:02:05]}  Ra8 {[%clk 0:00:06]} 27. Bb5 {[%clk 0:02:02]}  Nc6 {[%clk 0:00:05]} 28. Rd7 {[%clk 0:01:45]}  Bh6 {[%clk 0:00:03]} 29. Bd6+ {[%clk 0:01:30]}  Kc8 {[%clk 0:00:03]} 30. Rc7+ {[%clk 0:01:31]}  Kd8 {[%clk 0:00:03]} 31. Rd1 {[%clk 0:01:31]}  Ke8 {[%clk 0:00:02]} 32. Rxb7 {[%clk 0:01:31]}  Rc8 {[%clk 0:00:01]} 33. Rc7 {[%clk 0:01:27]}  Rxc7 {[%clk 0:00:02]} 34. Bxc7 {[%clk 0:01:27]}  Kf7 {[%clk 0:00:02]} 35. Bxc6 {[%clk 0:01:27]}  Bf8+ {[%clk 0:00:02]} 36. Kxa4 {[%clk 0:01:27]}  Be7 {[%clk 0:00:03]} 37. b7 {[%clk 0:01:26]}  f5 {[%clk 0:00:01]} 38. exf5 {[%clk 0:01:26]}  Kf6 {[%clk 0:00:01]} 39. b8=Q {[%clk 0:01:23]}  Kxf5 {[%clk 0:00:02]} 40. Qxh8 {[%clk 0:01:22]}  f2 {[%clk 0:00:02]} 41. Qe5# {[%clk 0:01:22]} 1-0


[Site "https://www.chess.com"]

[Event "Titled Tuesday Blitz February 07 Late 2023"]
[White "Kleiman, Jake"]
[Black "Harish, Neeraj"]
[WhiteFideId "2020041"]
[BlackFideId "30958130"]
[WhiteElo "2399"]
[BlackElo "2232"]
[Result "1-0"]
[Round "09"]
[TimeControl "180+2"]
[Date "2023.02.07"]
[WhiteClock "0:01:27"]
[BlackClock "0:00:02"]

1. e4 {[%clk 0:02:52]}  c5 {[%clk 0:02:58]} 2. c3 {[%clk 0:02:52]}  Nf6 {[%clk 0:02:58]} 3. e5 {[%clk 0:02:52]}  Nd5 {[%clk 0:02:56]} 4. Bc4 {[%clk 0:02:52]}  Nb6 {[%clk 0:02:54]} 5. Bb3 {[%clk 0:02:51]}  c4 {[%clk 0:02:54]} 6. Bc2 {[%clk 0:02:49]}  d6 {[%clk 0:02:55]} 7. exd6 {[%clk 0:02:48]}  Qxd6 {[%clk 0:02:55]} 8. Nf3 {[%clk 0:02:48]}  Nc6 {[%clk 0:02:54]} 9. Qe2 {[%clk 0:02:48]}  Bg4 {[%clk 0:02:43]} 10. Na3 {[%clk 0:02:47]}  e6 {[%clk 0:02:34]} 11. Nxc4 {[%clk 0:02:46]}  Nxc4 {[%clk 0:02:33]} 12. Qxc4 {[%clk 0:02:47]}  Bxf3 {[%clk 0:02:31]} 13. gxf3 {[%clk 0:02:48]}  Be7 {[%clk 0:02:12]} 14. Qe4 {[%clk 0:02:47]}  O-O-O {[%clk 0:02:04]} 15. f4 {[%clk 0:02:40]}  e5 {[%clk 0:01:55]} 16. fxe5 {[%clk 0:02:31]}  Nxe5 {[%clk 0:01:53]} 17. d4 {[%clk 0:02:31]}  Ng6 {[%clk 0:01:45]} 18. Be3 {[%clk 0:02:26]}  Rhe8 {[%clk 0:01:20]} 19. O-O-O {[%clk 0:02:23]}  Kb8 {[%clk 0:01:15]} 20. Qf5 {[%clk 0:02:18]}  Bf6 {[%clk 0:00:51]} 21. h4 {[%clk 0:02:00]}  Ka8 {[%clk 0:00:39]} 22. h5 {[%clk 0:01:58]}  Ne7 {[%clk 0:00:27]} 23. Qxh7 {[%clk 0:01:56]}  Nd5 {[%clk 0:00:26]} 24. Bd2 {[%clk 0:01:49]}  Re2 {[%clk 0:00:19]} 25. Qf5 {[%clk 0:01:48]}  Qe6 {[%clk 0:00:15]} 26. Qxe6 {[%clk 0:01:48]}  fxe6 {[%clk 0:00:15]} 27. Rdf1 {[%clk 0:01:46]}  Rf8 {[%clk 0:00:14]} 28. Bd3 {[%clk 0:01:46]}  Rxd2 {[%clk 0:00:12]} 29. Kxd2 {[%clk 0:01:47]}  Bg5+ {[%clk 0:00:13]} 30. Kd1 {[%clk 0:01:46]}  Nf4 {[%clk 0:00:13]} 31. Be4 {[%clk 0:01:46]}  Bh6 {[%clk 0:00:12]} 32. Rfg1 {[%clk 0:01:43]}  Kb8 {[%clk 0:00:12]} 33. Rg3 {[%clk 0:01:42]}  Kc7 {[%clk 0:00:11]} 34. Rf3 {[%clk 0:01:40]}  Kd6 {[%clk 0:00:12]} 35. Rg1 {[%clk 0:01:40]}  b6 {[%clk 0:00:12]} 36. Rg4 {[%clk 0:01:40]}  Rf6 {[%clk 0:00:11]} 37. Kc2 {[%clk 0:01:35]}  Kd7 {[%clk 0:00:08]} 38. Bg6 {[%clk 0:01:32]}  Kd6 {[%clk 0:00:05]} 39. Rg1 {[%clk 0:01:31]}  a5 {[%clk 0:00:03]} 40. a4 {[%clk 0:01:31]}  Kd5 {[%clk 0:00:03]} 41. Re1 {[%clk 0:01:31]}  Kd6 {[%clk 0:00:02]} 42. c4 {[%clk 0:01:27]} 1-0


[Site "https://www.chess.com"]

[Event "Titled Tuesday Blitz February 07 Late 2023"]
[White "Flynn, Jacob"]
[Black "Pakleza, Zbigniew"]
[WhiteFideId "2509393"]
[BlackFideId "1119290"]
[WhiteElo "2102"]
[BlackElo "2494"]
[Result "1-0"]
[Round "09"]
[TimeControl "180+2"]
[Date "2023.02.07"]
[WhiteClock "0:00:12"]
[BlackClock "0:00:02"]

1. d4 {[%clk 0:02:48]}  d5 {[%clk 0:02:59]} 2. c4 {[%clk 0:02:46]}  e5 {[%clk 0:02:59]} 3. dxe5 {[%clk 0:02:46]}  d4 {[%clk 0:03:00]} 4. Nf3 {[%clk 0:02:47]}  Nc6 {[%clk 0:02:57]} 5. a3 {[%clk 0:02:45]}  Nge7 {[%clk 0:02:49]} 6. b4 {[%clk 0:02:28]}  Ng6 {[%clk 0:02:38]} 7. Bb2 {[%clk 0:02:24]}  Ngxe5 {[%clk 0:02:24]} 8. Nxe5 {[%clk 0:02:22]}  Nxe5 {[%clk 0:02:25]} 9. Qxd4 {[%clk 0:02:20]}  Qxd4 {[%clk 0:02:21]} 10. Bxd4 {[%clk 0:02:21]}  Nxc4 {[%clk 0:02:21]} 11. e3 {[%clk 0:02:21]}  Be6 {[%clk 0:02:06]} 12. Be2 {[%clk 0:02:06]}  a5 {[%clk 0:02:03]} 13. b5 {[%clk 0:02:04]}  O-O-O {[%clk 0:01:34]} 14. O-O {[%clk 0:02:03]}  f6 {[%clk 0:01:25]} 15. Rc1 {[%clk 0:02:03]}  Ne5 {[%clk 0:01:14]} 16. Bb6 {[%clk 0:01:52]}  Bd6 {[%clk 0:01:14]} 17. Bxa5 {[%clk 0:01:53]}  Kd7 {[%clk 0:01:14]} 18. Be1 {[%clk 0:01:47]}  Ra8 {[%clk 0:01:05]} 19. a4 {[%clk 0:01:47]}  b6 {[%clk 0:01:06]} 20. h3 {[%clk 0:01:35]}  g5 {[%clk 0:01:05]} 21. f4 {[%clk 0:01:35]}  gxf4 {[%clk 0:00:59]} 22. exf4 {[%clk 0:01:35]}  Ng6 {[%clk 0:00:59]} 23. g3 {[%clk 0:01:27]}  Bxh3 {[%clk 0:00:58]} 24. Nc3 {[%clk 0:01:19]}  h5 {[%clk 0:00:43]} 25. Nd5 {[%clk 0:01:17]}  h4 {[%clk 0:00:37]} 26. Nxf6+ {[%clk 0:01:03]}  Ke6 {[%clk 0:00:33]} 27. Ne4 {[%clk 0:01:03]}  hxg3 {[%clk 0:00:27]} 28. Nxd6 {[%clk 0:01:03]}  Nxf4 {[%clk 0:00:26]} 29. Bf3 {[%clk 0:01:00]}  cxd6 {[%clk 0:00:22]} 30. Bxg3 {[%clk 0:00:52]}  Rag8 {[%clk 0:00:20]} 31. Re1+ {[%clk 0:00:43]}  Kd7 {[%clk 0:00:21]} 32. Bc6+ {[%clk 0:00:41]}  Kd8 {[%clk 0:00:21]} 33. Re8+ {[%clk 0:00:34]}  Rxe8 {[%clk 0:00:20]} 34. Bxe8 {[%clk 0:00:35]}  Ne2+ {[%clk 0:00:15]} 35. Kf2 {[%clk 0:00:35]}  Nxg3 {[%clk 0:00:06]} 36. Bg6 {[%clk 0:00:23]}  Nf5 {[%clk 0:00:03]} 37. a5 {[%clk 0:00:21]}  bxa5 {[%clk 0:00:02]} 38. Rxa5 {[%clk 0:00:21]}  Kc7 {[%clk 0:00:02]} 39. Ra7+ {[%clk 0:00:20]}  Kb6 {[%clk 0:00:02]} 40. Rf7 {[%clk 0:00:16]}  Nd4 {[%clk 0:00:02]} 41. Rf6 {[%clk 0:00:15]}  Be6 {[%clk 0:00:02]} 42. Bf7 {[%clk 0:00:12]} 1-0


[Site "https://www.chess.com"]

[Event "Titled Tuesday Blitz February 07 Late 2023"]
[White "Sielecki, Christof"]
[Black "Estrada Nieto, Julian"]
[WhiteFideId "4620437"]
[BlackFideId "5101018"]
[WhiteElo "2419"]
[BlackElo "2215"]
[Result "1-0"]
[Round "09"]
[TimeControl "180+2"]
[Date "2023.02.07"]
[WhiteClock "0:00:14"]
[BlackClock "0:00:05"]

1. e4 {[%clk 0:03:00]}  e5 {[%clk 0:02:59]} 2. Nf3 {[%clk 0:03:00]}  Nc6 {[%clk 0:02:59]} 3. Bb5 {[%clk 0:03:00]}  a6 {[%clk 0:02:59]} 4. Ba4 {[%clk 0:03:00]}  Nf6 {[%clk 0:03:00]} 5. d3 {[%clk 0:02:59]}  d6 {[%clk 0:02:59]} 6. c3 {[%clk 0:02:59]}  g6 {[%clk 0:02:59]} 7. O-O {[%clk 0:02:58]}  Bg7 {[%clk 0:03:00]} 8. Re1 {[%clk 0:02:59]}  O-O {[%clk 0:03:00]} 9. Nbd2 {[%clk 0:02:59]}  Bd7 {[%clk 0:02:58]} 10. Nf1 {[%clk 0:02:59]}  Nh5 {[%clk 0:02:56]} 11. Ng3 {[%clk 0:02:58]}  Nxg3 {[%clk 0:02:53]} 12. hxg3 {[%clk 0:02:58]}  Qe8 {[%clk 0:02:42]} 13. b4 {[%clk 0:02:46]}  Nd4 {[%clk 0:02:32]} 14. Bxd7 {[%clk 0:02:35]}  Nxf3+ {[%clk 0:02:32]} 15. gxf3 {[%clk 0:02:27]}  Qxd7 {[%clk 0:02:33]} 16. Kg2 {[%clk 0:02:25]}  d5 {[%clk 0:02:30]} 17. c4 {[%clk 0:02:21]}  dxc4 {[%clk 0:02:24]} 18. dxc4 {[%clk 0:02:21]}  Rfd8 {[%clk 0:02:23]} 19. Be3 {[%clk 0:02:16]}  Qd3 {[%clk 0:02:05]} 20. Qb3 {[%clk 0:02:07]}  Qxb3 {[%clk 0:01:57]} 21. axb3 {[%clk 0:02:07]}  Rd3 {[%clk 0:01:55]} 22. Reb1 {[%clk 0:02:01]}  Bf8 {[%clk 0:01:41]} 23. b5 {[%clk 0:01:55]}  Bb4 {[%clk 0:01:36]} 24. bxa6 {[%clk 0:01:51]}  bxa6 {[%clk 0:01:33]} 25. Kf1 {[%clk 0:01:32]}  a5 {[%clk 0:01:33]} 26. Ke2 {[%clk 0:01:31]}  Rc3 {[%clk 0:01:15]} 27. Ra2 {[%clk 0:01:26]}  Rd8 {[%clk 0:01:11]} 28. Rab2 {[%clk 0:00:56]}  Rcd3 {[%clk 0:00:50]} 29. Rc2 {[%clk 0:00:48]}  f6 {[%clk 0:00:48]} 30. Rcc1 {[%clk 0:00:46]}  Kf7 {[%clk 0:00:45]} 31. Rd1 {[%clk 0:00:46]}  Rxd1 {[%clk 0:00:43]} 32. Rxd1 {[%clk 0:00:47]}  Rxd1 {[%clk 0:00:39]} 33. Kxd1 {[%clk 0:00:46]}  h5 {[%clk 0:00:37]} 34. Ke2 {[%clk 0:00:42]}  Ke6 {[%clk 0:00:36]} 35. f4 {[%clk 0:00:41]}  exf4 {[%clk 0:00:32]} 36. Bxf4 {[%clk 0:00:42]}  c6 {[%clk 0:00:22]} 37. Bc7 {[%clk 0:00:38]}  g5 {[%clk 0:00:21]} 38. f4 {[%clk 0:00:33]}  gxf4 {[%clk 0:00:18]} 39. gxf4 {[%clk 0:00:33]}  Bd6 {[%clk 0:00:17]} 40. Bxd6 {[%clk 0:00:17]}  Kxd6 {[%clk 0:00:17]} 41. Kf3 {[%clk 0:00:18]}  Kc5 {[%clk 0:00:17]} 42. Kg3 {[%clk 0:00:12]}  Kd4 {[%clk 0:00:17]} 43. e5 {[%clk 0:00:13]}  fxe5 {[%clk 0:00:14]} 44. f5 {[%clk 0:00:14]}  e4 {[%clk 0:00:13]} 45. f6 {[%clk 0:00:14]}  e3 {[%clk 0:00:12]} 46. f7 {[%clk 0:00:14]}  h4+ {[%clk 0:00:05]} 47. Kf3 {[%clk 0:00:13]}  Kd3 {[%clk 0:00:04]} 48. f8=Q {[%clk 0:00:13]}  e2 {[%clk 0:00:05]} 49. Qd6+ {[%clk 0:00:13]}  Kc3 {[%clk 0:00:05]} 50. Kxe2 {[%clk 0:00:13]}  Kxb3 {[%clk 0:00:05]} 51. Qxc6 {[%clk 0:00:13]}  a4 {[%clk 0:00:05]} 52. Qb5+ {[%clk 0:00:14]} 1-0


[Site "https://www.chess.com"]

[Event "Titled Tuesday Blitz February 07 Late 2023"]
[White "Cori T., Deysi"]
[Black "Fiorito, Francisco"]
[WhiteFideId "3801934"]
[BlackFideId "180165"]
[WhiteElo "2362"]
[BlackElo "2305"]
[Result "1-0"]
[Round "09"]
[TimeControl "180+2"]
[Date "2023.02.07"]
[WhiteClock "0:00:31"]
[BlackClock "0:00:45"]

1. d4 {[%clk 0:03:00]}  Nf6 {[%clk 0:02:59]} 2. Nf3 {[%clk 0:03:01]}  b6 {[%clk 0:02:58]} 3. g3 {[%clk 0:03:01]}  Bb7 {[%clk 0:02:59]} 4. Bg2 {[%clk 0:03:02]}  g6 {[%clk 0:03:00]} 5. O-O {[%clk 0:03:02]}  Bg7 {[%clk 0:03:00]} 6. a4 {[%clk 0:03:02]}  a5 {[%clk 0:02:58]} 7. Bg5 {[%clk 0:03:01]}  O-O {[%clk 0:02:57]} 8. Nbd2 {[%clk 0:03:01]}  d6 {[%clk 0:02:53]} 9. Re1 {[%clk 0:03:01]}  Nbd7 {[%clk 0:02:51]} 10. e4 {[%clk 0:03:01]}  e5 {[%clk 0:02:52]} 11. dxe5 {[%clk 0:02:57]}  dxe5 {[%clk 0:02:49]} 12. Nc4 {[%clk 0:02:57]}  Qe7 {[%clk 0:02:50]} 13. b3 {[%clk 0:02:30]}  h6 {[%clk 0:02:39]} 14. Bxf6 {[%clk 0:02:28]}  Bxf6 {[%clk 0:02:39]} 15. Qd2 {[%clk 0:02:28]}  Bg7 {[%clk 0:02:38]} 16. Rad1 {[%clk 0:02:27]}  Nc5 {[%clk 0:02:37]} 17. Nh4 {[%clk 0:02:26]}  Rad8 {[%clk 0:02:36]} 18. Qe3 {[%clk 0:02:26]}  Ne6 {[%clk 0:02:31]} 19. c3 {[%clk 0:02:23]}  Nc5 {[%clk 0:02:29]} 20. b4 {[%clk 0:01:55]}  axb4 {[%clk 0:02:19]} 21. cxb4 {[%clk 0:01:56]}  Nxa4 {[%clk 0:02:09]} 22. Qb3 {[%clk 0:01:55]}  b5 {[%clk 0:02:09]} 23. Na5 {[%clk 0:01:52]}  Ba8 {[%clk 0:02:09]} 24. Nxg6 {[%clk 0:01:45]}  Qf6 {[%clk 0:01:57]} 25. Nxf8 {[%clk 0:01:45]}  Rxf8 {[%clk 0:01:57]} 26. Qc2 {[%clk 0:01:42]}  Rc8 {[%clk 0:01:51]} 27. Bh3 {[%clk 0:01:41]}  Rf8 {[%clk 0:01:48]} 28. Qxc7 {[%clk 0:01:40]}  Qg6 {[%clk 0:01:40]} 29. Bf5 {[%clk 0:01:37]}  Qg5 {[%clk 0:01:40]} 30. h4 {[%clk 0:01:33]}  Qh5 {[%clk 0:01:35]} 31. Rd8 {[%clk 0:01:03]}  Qf3 {[%clk 0:01:29]} 32. Qc8 {[%clk 0:00:54]}  Nc3 {[%clk 0:01:00]} 33. Qxa8 {[%clk 0:00:40]}  Ne2+ {[%clk 0:00:59]} 34. Rxe2 {[%clk 0:00:39]}  Qxe2 {[%clk 0:01:00]} 35. Nc6 {[%clk 0:00:39]}  Qd1+ {[%clk 0:00:52]} 36. Kg2 {[%clk 0:00:32]}  Rxd8 {[%clk 0:00:46]} 37. Qxd8+ {[%clk 0:00:31]}  Qxd8 {[%clk 0:00:46]} 38. Nxd8 {[%clk 0:00:32]}  Bf8 {[%clk 0:00:47]} 39. Nc6 {[%clk 0:00:32]}  Bd6 {[%clk 0:00:47]} 40. Bc8 {[%clk 0:00:31]}  Kf8 {[%clk 0:00:46]} 41. Ba6 {[%clk 0:00:32]}  f5 {[%clk 0:00:47]} 42. exf5 {[%clk 0:00:31]}  Kf7 {[%clk 0:00:47]} 43. Kf3 {[%clk 0:00:31]}  Kf6 {[%clk 0:00:48]} 44. Ke4 {[%clk 0:00:31]}  Bxb4 {[%clk 0:00:45]} 45. Nxb4 {[%clk 0:00:31]} 1-0


[Site "https://www.chess.com"]

[Event "Titled Tuesday Blitz February 07 Late 2023"]
[White "Dudzinski, Pawel"]
[Black "Chor, Kevin"]
[WhiteFideId "1117890"]
[BlackFideId "2090740"]
[WhiteElo "2186"]
[BlackElo "1944"]
[Result "0-1"]
[Round "09"]
[TimeControl "180+2"]
[Date "2023.02.07"]
[WhiteClock "0:00:35"]
[BlackClock "0:00:36"]

1. e4 {[%clk 0:03:00]}  c5 {[%clk 0:03:00]} 2. c4 {[%clk 0:02:59]}  d6 {[%clk 0:02:48]} 3. Nc3 {[%clk 0:02:59]}  Nf6 {[%clk 0:02:47]} 4. g3 {[%clk 0:03:00]}  g6 {[%clk 0:02:45]} 5. Bg2 {[%clk 0:03:00]}  Bg7 {[%clk 0:02:46]} 6. Nge2 {[%clk 0:03:00]}  Nc6 {[%clk 0:02:44]} 7. Rb1 {[%clk 0:03:01]}  O-O {[%clk 0:02:43]} 8. a3 {[%clk 0:03:01]}  a5 {[%clk 0:02:42]} 9. Nb5 {[%clk 0:03:01]}  Ne8 {[%clk 0:02:24]} 10. d4 {[%clk 0:02:59]}  cxd4 {[%clk 0:02:21]} 11. Nexd4 {[%clk 0:02:59]}  Nc7 {[%clk 0:02:18]} 12. Nxc6 {[%clk 0:02:47]}  bxc6 {[%clk 0:02:19]} 13. Nd4 {[%clk 0:02:44]}  Bb7 {[%clk 0:02:10]} 14. c5 {[%clk 0:02:11]}  dxc5 {[%clk 0:01:51]} 15. Nb3 {[%clk 0:02:10]}  Qxd1+ {[%clk 0:01:47]} 16. Kxd1 {[%clk 0:02:11]}  Rfd8+ {[%clk 0:01:41]} 17. Ke1 {[%clk 0:02:11]}  Ne6 {[%clk 0:01:41]} 18. Bh3 {[%clk 0:02:06]}  c4 {[%clk 0:01:28]} 19. Bxe6 {[%clk 0:02:06]}  cxb3 {[%clk 0:01:29]} 20. Bxb3 {[%clk 0:02:05]}  Ba6 {[%clk 0:01:29]} 21. Bc2 {[%clk 0:02:04]}  Rab8 {[%clk 0:01:28]} 22. Bd2 {[%clk 0:01:52]}  a4 {[%clk 0:01:13]} 23. Bc3 {[%clk 0:01:26]}  Bxc3+ {[%clk 0:01:07]} 24. bxc3 {[%clk 0:01:27]}  Rxb1+ {[%clk 0:01:07]} 25. Bxb1 {[%clk 0:01:28]}  Bd3 {[%clk 0:01:08]} 26. Ba2 {[%clk 0:01:14]}  Bxe4 {[%clk 0:01:02]} 27. f3 {[%clk 0:01:10]}  Bxf3 {[%clk 0:01:00]} 28. Rf1 {[%clk 0:01:08]}  Rd1+ {[%clk 0:00:58]} 29. Kf2 {[%clk 0:01:08]}  Rxf1+ {[%clk 0:00:53]} 30. Kxf1 {[%clk 0:01:09]}  Bd5 {[%clk 0:00:52]} 31. Bb1 {[%clk 0:01:04]}  Kg7 {[%clk 0:00:51]} 32. Kf2 {[%clk 0:01:04]}  Kf6 {[%clk 0:00:51]} 33. Ke3 {[%clk 0:01:04]}  Ke5 {[%clk 0:00:52]} 34. Bc2 {[%clk 0:00:49]}  Bb3 {[%clk 0:00:42]} 35. Bxb3 {[%clk 0:00:47]}  axb3 {[%clk 0:00:43]} 36. Kd3 {[%clk 0:00:47]}  Kd5 {[%clk 0:00:43]} 37. a4 {[%clk 0:00:43]}  Kc5 {[%clk 0:00:41]} 38. Kd2 {[%clk 0:00:35]}  e5 {[%clk 0:00:39]} 39. Kc1 {[%clk 0:00:35]}  e4 {[%clk 0:00:36]} 40. Kb2 {[%clk 0:00:35]}  e3 {[%clk 0:00:36]} 0-1


[Site "https://www.chess.com"]

[Event "Titled Tuesday Blitz February 07 Late 2023"]
[White "Chan, Luis"]
[Black "Buchenau, Frank"]
[WhiteFideId "3216357"]
[BlackFideId "4604350"]
[WhiteElo "2208"]
[BlackElo "2222"]
[Result "1-0"]
[Round "09"]
[TimeControl "180+2"]
[Date "2023.02.07"]
[WhiteClock "0:00:11"]
[BlackClock "0:00:04"]

1. b3 {[%clk 0:02:57]}  d5 {[%clk 0:02:59]} 2. Bb2 {[%clk 0:02:58]}  Bg4 {[%clk 0:02:58]} 3. f3 {[%clk 0:02:58]}  Bf5 {[%clk 0:02:56]} 4. e4 {[%clk 0:02:58]}  dxe4 {[%clk 0:02:54]} 5. Qe2 {[%clk 0:02:57]}  Nc6 {[%clk 0:02:34]} 6. fxe4 {[%clk 0:02:56]}  Bg6 {[%clk 0:02:30]} 7. Nf3 {[%clk 0:02:52]}  Nf6 {[%clk 0:02:16]} 8. d3 {[%clk 0:02:42]}  e6 {[%clk 0:02:10]} 9. Nbd2 {[%clk 0:02:36]}  Bc5 {[%clk 0:01:56]} 10. O-O-O {[%clk 0:02:36]}  Nd4 {[%clk 0:01:53]} 11. Nxd4 {[%clk 0:02:19]}  Bxd4 {[%clk 0:01:54]} 12. c3 {[%clk 0:01:38]}  Bb6 {[%clk 0:01:48]} 13. g4 {[%clk 0:01:26]}  h5 {[%clk 0:01:45]} 14. g5 {[%clk 0:00:57]}  Ng4 {[%clk 0:01:41]} 15. d4 {[%clk 0:00:40]}  Qxg5 {[%clk 0:01:37]} 16. Bg2 {[%clk 0:00:19]}  Ne3 {[%clk 0:01:34]} 17. Rdg1 {[%clk 0:00:19]}  O-O-O {[%clk 0:01:24]} 18. Bf3 {[%clk 0:00:16]}  Qf4 {[%clk 0:01:21]} 19. h3 {[%clk 0:00:16]}  e5 {[%clk 0:01:14]} 20. Re1 {[%clk 0:00:16]}  exd4 {[%clk 0:01:13]} 21. cxd4 {[%clk 0:00:17]}  Nd5 {[%clk 0:00:45]} 22. exd5 {[%clk 0:00:16]}  Rhe8 {[%clk 0:00:45]} 23. Qc4 {[%clk 0:00:13]}  Ba5 {[%clk 0:00:43]} 24. Bc3 {[%clk 0:00:08]}  Bxc3 {[%clk 0:00:36]} 25. Qxc3 {[%clk 0:00:09]}  Bf5 {[%clk 0:00:33]} 26. Kb2 {[%clk 0:00:08]}  Rxe1 {[%clk 0:00:28]} 27. Rxe1 {[%clk 0:00:09]}  Bxh3 {[%clk 0:00:28]} 28. Re5 {[%clk 0:00:10]}  Bg4 {[%clk 0:00:26]} 29. Bxg4+ {[%clk 0:00:07]}  hxg4 {[%clk 0:00:27]} 30. d6 {[%clk 0:00:06]}  Rxd6 {[%clk 0:00:26]} 31. Re8+ {[%clk 0:00:06]}  Kd7 {[%clk 0:00:22]} 32. Re4 {[%clk 0:00:06]}  Qf2 {[%clk 0:00:19]} 33. Kc2 {[%clk 0:00:05]}  f5 {[%clk 0:00:18]} 34. Re5 {[%clk 0:00:05]}  g3 {[%clk 0:00:18]} 35. Qc4 {[%clk 0:00:05]}  Qxd4 {[%clk 0:00:11]} 36. Qf7+ {[%clk 0:00:05]}  Kc6 {[%clk 0:00:11]} 37. Qc4+ {[%clk 0:00:04]}  Qxc4+ {[%clk 0:00:10]} 38. Nxc4 {[%clk 0:00:05]}  g2 {[%clk 0:00:10]} 39. Re1 {[%clk 0:00:05]}  Rg6 {[%clk 0:00:10]} 40. Ne5+ {[%clk 0:00:05]}  Kd5 {[%clk 0:00:09]} 41. Nxg6 {[%clk 0:00:06]}  Kd4 {[%clk 0:00:05]} 42. Nf4 {[%clk 0:00:06]}  g5 {[%clk 0:00:04]} 43. Nxg2 {[%clk 0:00:07]}  f4 {[%clk 0:00:04]} 44. Kd2 {[%clk 0:00:07]}  c5 {[%clk 0:00:05]} 45. Ke2 {[%clk 0:00:07]}  b5 {[%clk 0:00:04]} 46. Rc1 {[%clk 0:00:07]}  c4 {[%clk 0:00:03]} 47. bxc4 {[%clk 0:00:08]}  bxc4 {[%clk 0:00:04]} 48. Kf3 {[%clk 0:00:08]}  c3 {[%clk 0:00:04]} 49. Ne1 {[%clk 0:00:09]}  Kc4 {[%clk 0:00:03]} 50. Rc2 {[%clk 0:00:09]}  Kb4 {[%clk 0:00:03]} 51. Kg4 {[%clk 0:00:10]}  a5 {[%clk 0:00:04]} 52. Kxg5 {[%clk 0:00:10]}  f3 {[%clk 0:00:03]} 53. Nxf3 {[%clk 0:00:10]}  a4 {[%clk 0:00:04]} 54. Ne1 {[%clk 0:00:11]}  a3 {[%clk 0:00:04]} 55. Kf4 {[%clk 0:00:11]} 1-0


[Site "https://www.chess.com"]